[Event "Late-Titled-Tuesday-Blitz-February-20-2024"]
[Site "Chess.com"]
[Date "2024.02.20"]
[Round "3"]
[White "steepedgames"]
[Black "elchacal664"]
[Result "1-0"]
[WhiteElo "2561"]
[BlackElo "2360"]
[TimeControl "180+1"]
[EndTime "14:27:16 PST"]
[Termination "steepedgames won on time"]

1. d4 {[%clk 0:03:00.9]} 1... e5 {[%clk 0:02:52.4]} 2. dxe5 {[%clk 0:03:00.3]}
2... Nc6 {[%clk 0:02:52.5]} 3. Nf3 {[%clk 0:02:59.8]} 3... Qe7 {[%clk
0:02:52.8]} 4. e3 {[%clk 0:02:56.4]} 4... Nxe5 {[%clk 0:02:52.2]} 5. Be2 {[%clk
0:02:55.9]} 5... Nf6 {[%clk 0:02:51.3]} 6. O-O {[%clk 0:02:53.7]} 6... g6 {[%clk
0:02:51.8]} 7. Nc3 {[%clk 0:02:51.4]} 7... Bg7 {[%clk 0:02:51.1]} 8. b3 {[%clk
0:02:42.2]} 8... O-O {[%clk 0:02:43.6]} 9. Nxe5 {[%clk 0:02:37.5]} 9... Qxe5
{[%clk 0:02:42]} 10. Bb2 {[%clk 0:02:38.2]} 10... Qe7 {[%clk 0:02:24.1]} 11. Bf3
{[%clk 0:02:06.2]} 11... d6 {[%clk 0:02:19.4]} 12. Re1 {[%clk 0:02:04.9]} 12...
h5 {[%clk 0:01:55]} 13. h3 {[%clk 0:02:03.1]} 13... c6 {[%clk 0:01:47.5]} 14. e4
{[%clk 0:02:00.8]} 14... Nd7 {[%clk 0:01:45.2]} 15. Qd2 {[%clk 0:01:57.2]} 15...
Ne5 {[%clk 0:01:40.1]} 16. Be2 {[%clk 0:01:57.3]} 16... f5 {[%clk 0:01:36.5]}
17. Rad1 {[%clk 0:01:52.8]} 17... fxe4 {[%clk 0:01:16.5]} 18. Qxd6 {[%clk
0:01:45.4]} 18... Qh4 {[%clk 0:01:11.1]} 19. Nxe4 {[%clk 0:00:54.9]} 19... Qxe4
{[%clk 0:01:09.3]} 20. Bxe5 {[%clk 0:00:51.5]} 20... Qf5 {[%clk 0:00:42.4]} 21.
Bc4+ {[%clk 0:00:43.6]} 21... Kh7 {[%clk 0:00:39.8]} 22. Bxg7 {[%clk 0:00:38.3]}
22... Qxf2+ {[%clk 0:00:28.6]} 23. Kh1 {[%clk 0:00:38.4]} 23... Bxh3 {[%clk
0:00:28]} 24. Qh2 {[%clk 0:00:30.5]} 24... Kxg7 {[%clk 0:00:17.9]} 25. gxh3
{[%clk 0:00:24]} 25... Qh4 {[%clk 0:00:17.6]} 26. Rf1 {[%clk 0:00:20.5]} 26...
b5 {[%clk 0:00:15.5]} 27. Bd3 {[%clk 0:00:19.5]} 27... Rae8 {[%clk 0:00:13]} 28.
Qg2 {[%clk 0:00:18.5]} 28... Re6 {[%clk 0:00:09.2]} 29. Rxf8 {[%clk 0:00:17.7]}
29... Kxf8 {[%clk 0:00:10.1]} 30. Rf1+ {[%clk 0:00:17.6]} 30... Kg7 {[%clk
0:00:10]} 31. Qf3 {[%clk 0:00:17]} 31... Kh7 {[%clk 0:00:02.5]} 32. Qf7+ {[%clk
0:00:16.7]} 32... Kh6 {[%clk 0:00:02.9]} 33. Qxe6 {[%clk 0:00:15.9]} 33... Qg3
{[%clk 0:00:02.7]} 34. Qe2 {[%clk 0:00:06.7]} 34... Qxh3+ {[%clk 0:00:02.4]} 35.
Qh2 {[%clk 0:00:07.4]} 35... Qf3+ {[%clk 0:00:02.6]} 36. Rxf3 {[%clk 0:00:06.7]}
1-0

[Event "Late-Titled-Tuesday-Blitz-February-20-2024"]
[Site "Chess.com"]
[Date "2024.02.20"]
[Round "3"]
[White "NtcPou"]
[Black "pr1105"]
[Result "1-0"]
[WhiteElo "2020"]
[BlackElo "2345"]
[TimeControl "180+1"]
[EndTime "14:27:17 PST"]
[Termination "NtcPou won by resignation"]

1. e4 {[%clk 0:03:00.9]} 1... e5 {[%clk 0:02:57.2]} 2. Nf3 {[%clk 0:03:00.4]}
2... Nc6 {[%clk 0:02:57.6]} 3. Bc4 {[%clk 0:03:00.2]} 3... Nf6 {[%clk
0:02:57.2]} 4. d3 {[%clk 0:03:00.2]} 4... Bc5 {[%clk 0:02:57]} 5. O-O {[%clk
0:02:59.5]} 5... d6 {[%clk 0:02:54.8]} 6. c3 {[%clk 0:02:58.4]} 6... a5 {[%clk
0:02:55.2]} 7. Re1 {[%clk 0:02:57.2]} 7... h6 {[%clk 0:02:54.9]} 8. Nbd2 {[%clk
0:02:56.7]} 8... O-O {[%clk 0:02:53.9]} 9. Nf1 {[%clk 0:02:56.1]} 9... Be6
{[%clk 0:02:51.2]} 10. Ng3 {[%clk 0:02:41.2]} 10... Bxc4 {[%clk 0:02:28.3]} 11.
dxc4 {[%clk 0:02:39.7]} 11... Ne7 {[%clk 0:02:29]} 12. Nf1 {[%clk 0:02:20.8]}
12... Qd7 {[%clk 0:02:26.4]} 13. h3 {[%clk 0:02:20.3]} 13... Qe6 {[%clk
0:02:17.9]} 14. b3 {[%clk 0:02:18.4]} 14... a4 {[%clk 0:02:04.8]} 15. b4 {[%clk
0:02:04.5]} 15... Bb6 {[%clk 0:02:03]} 16. Qd3 {[%clk 0:02:05]} 16... Ng6 {[%clk
0:01:56.5]} 17. a3 {[%clk 0:02:00.1]} 17... Nh5 {[%clk 0:01:49.2]} 18. Ne3
{[%clk 0:01:46.6]} 18... Nhf4 {[%clk 0:01:40.5]} 19. Qf1 {[%clk 0:01:43.9]}
19... Ne7 {[%clk 0:01:30.3]} 20. Nd5 {[%clk 0:01:41.2]} 20... Nexd5 {[%clk
0:01:19.4]} 21. cxd5 {[%clk 0:01:40.5]} 21... Qg6 {[%clk 0:01:15.1]} 22. Kh2
{[%clk 0:01:37.3]} 22... Qh5 {[%clk 0:01:03.9]} 23. g4 {[%clk 0:01:27.6]} 23...
Qg6 {[%clk 0:00:59]} 24. Nh4 {[%clk 0:01:23.7]} 24... Qg5 {[%clk 0:00:52.3]} 25.
Nf3 {[%clk 0:01:22.4]} 25... Qe7 {[%clk 0:00:44.9]} 26. Bxf4 {[%clk 0:01:11.5]}
26... exf4 {[%clk 0:00:43.6]} 27. Nd4 {[%clk 0:01:11.7]} 27... g6 {[%clk
0:00:41]} 28. f3 {[%clk 0:01:11.6]} 28... Kg7 {[%clk 0:00:38.1]} 29. Qd3 {[%clk
0:01:09.7]} 29... Rh8 {[%clk 0:00:33.9]} 30. c4 {[%clk 0:01:07.7]} 30... h5
{[%clk 0:00:32.1]} 31. Rac1 {[%clk 0:00:38.6]} 31... hxg4 {[%clk 0:00:20.5]} 32.
fxg4 {[%clk 0:00:39.5]} 32... Qe5 {[%clk 0:00:13.4]} 33. Nf3 {[%clk 0:00:24.7]}
33... Qe8 {[%clk 0:00:12.9]} 34. c5 {[%clk 0:00:24]} 34... Ba7 {[%clk
0:00:11.8]} 35. e5 {[%clk 0:00:13.1]} 35... Qe7 {[%clk 0:00:07.4]} 36. exd6
{[%clk 0:00:11.3]} 36... Qd7 {[%clk 0:00:07.4]} 37. Qd4+ {[%clk 0:00:09.8]}
37... f6 {[%clk 0:00:07.5]} 38. Qxf4 {[%clk 0:00:09.5]} 38... cxd6 {[%clk
0:00:07.1]} 39. cxd6 {[%clk 0:00:07.7]} 39... Rad8 {[%clk 0:00:06.6]} 40. Rc7
{[%clk 0:00:07.4]} 1-0

[Event "Late-Titled-Tuesday-Blitz-February-20-2024"]
[Site "Chess.com"]
[Date "2024.02.20"]
[Round "3"]
[White "chegueps"]
[Black "diskeleven"]
[Result "1-0"]
[WhiteElo "2662"]
[BlackElo "2452"]
[TimeControl "180+1"]
[EndTime "14:27:18 PST"]
[Termination "chegueps won by checkmate"]

1. d4 {[%clk 0:03:00.9]} 1... e6 {[%clk 0:02:58.5]} 2. Nf3 {[%clk 0:02:58.4]}
2... f5 {[%clk 0:02:58.3]} 3. h3 {[%clk 0:02:54.9]} 3... Nf6 {[%clk 0:02:49.4]}
4. g4 {[%clk 0:02:54.6]} 4... fxg4 {[%clk 0:02:49.3]} 5. hxg4 {[%clk 0:02:55.5]}
5... Nxg4 {[%clk 0:02:49.5]} 6. Bh3 {[%clk 0:02:54.9]} 6... Nf6 {[%clk
0:02:45.7]} 7. Nc3 {[%clk 0:02:55]} 7... Be7 {[%clk 0:02:40.7]} 8. Qd3 {[%clk
0:02:54.5]} 8... Nc6 {[%clk 0:02:31.1]} 9. Bg5 {[%clk 0:02:35.7]} 9... Nb4
{[%clk 0:02:23.8]} 10. Qd2 {[%clk 0:02:33.1]} 10... b6 {[%clk 0:02:21.2]} 11.
Ne5 {[%clk 0:02:06.9]} 11... Bb7 {[%clk 0:02:15.1]} 12. Rg1 {[%clk 0:02:05]}
12... d6 {[%clk 0:02:04.2]} 13. Nd3 {[%clk 0:01:57.6]} 13... Nxd3+ {[%clk
0:02:01.8]} 14. Qxd3 {[%clk 0:01:44.8]} 14... e5 {[%clk 0:01:55.4]} 15. d5
{[%clk 0:01:31.3]} 15... Bc8 {[%clk 0:01:31.9]} 16. O-O-O {[%clk 0:01:23.5]}
16... Bxh3 {[%clk 0:01:31.1]} 17. Qxh3 {[%clk 0:01:23.7]} 17... Qc8 {[%clk
0:01:31.5]} 18. Qd3 {[%clk 0:01:20.3]} 18... Qd7 {[%clk 0:01:28.5]} 19. Bd2
{[%clk 0:01:14.6]} 19... g6 {[%clk 0:01:18]} 20. Kb1 {[%clk 0:01:09]} 20... a6
{[%clk 0:01:09.2]} 21. f4 {[%clk 0:01:06.5]} 21... exf4 {[%clk 0:01:06.8]} 22.
Bxf4 {[%clk 0:01:07.4]} 22... b5 {[%clk 0:01:06.8]} 23. e4 {[%clk 0:01:05]}
23... O-O-O {[%clk 0:01:03.2]} 24. a4 {[%clk 0:01:02.5]} 24... Nh5 {[%clk
0:00:52.9]} 25. Be3 {[%clk 0:00:58.2]} 25... Kb7 {[%clk 0:00:32.1]} 26. axb5
{[%clk 0:00:57.4]} 26... Ra8 {[%clk 0:00:29.2]} 27. b6 {[%clk 0:00:35.9]} 27...
cxb6 {[%clk 0:00:28.2]} 28. Qd4 {[%clk 0:00:35.6]} 28... Qc7 {[%clk 0:00:25.3]}
29. Rd3 {[%clk 0:00:29]} 29... Bf6 {[%clk 0:00:25.3]} 30. Qb4 {[%clk 0:00:28.6]}
30... Rac8 {[%clk 0:00:23.8]} 31. Rg2 {[%clk 0:00:24.4]} 31... Rhe8 {[%clk
0:00:23.5]} 32. Na4 {[%clk 0:00:21.8]} 32... b5 {[%clk 0:00:21.9]} 33. Nb6
{[%clk 0:00:22.2]} 33... Rcd8 {[%clk 0:00:20.7]} 34. Ra3 {[%clk 0:00:22.1]}
34... Be5 {[%clk 0:00:19.1]} 35. Qa5 {[%clk 0:00:14.4]} 35... Ra8 {[%clk
0:00:19.4]} 36. c4 {[%clk 0:00:12.4]} 36... Ra7 {[%clk 0:00:19]} 37. cxb5 {[%clk
0:00:11.6]} 37... Rg8 {[%clk 0:00:17.7]} 38. Rc2 {[%clk 0:00:11.4]} 38... Qg7
{[%clk 0:00:17.4]} 39. bxa6+ {[%clk 0:00:11.4]} 39... Kb8 {[%clk 0:00:17.9]} 40.
Nc4 {[%clk 0:00:09.8]} 40... Nf6 {[%clk 0:00:17.9]} 41. Nxe5 {[%clk 0:00:09.7]}
41... dxe5 {[%clk 0:00:17.7]} 42. Rb3+ {[%clk 0:00:09]} 42... Ka8 {[%clk
0:00:17.2]} 43. Rb7 {[%clk 0:00:09.4]} 43... Qf8 {[%clk 0:00:14.7]} 44. Rxa7+
{[%clk 0:00:09]} 44... Kb8 {[%clk 0:00:14.9]} 45. Qb6# {[%clk 0:00:06.1]} 1-0

[Event "Late-Titled-Tuesday-Blitz-February-20-2024"]
[Site "Chess.com"]
[Date "2024.02.20"]
[Round "3"]
[White "jcmesafischer"]
[Black "shirovin"]
[Result "1-0"]
[WhiteElo "2375"]
[BlackElo "2088"]
[TimeControl "180+1"]
[EndTime "14:27:21 PST"]
[Termination "jcmesafischer won by checkmate"]

1. e4 {[%clk 0:03:00.9]} 1... c5 {[%clk 0:02:59.2]} 2. Nf3 {[%clk 0:03:01.8]}
2... d6 {[%clk 0:02:59.4]} 3. d4 {[%clk 0:03:01.2]} 3... cxd4 {[%clk 0:02:59.6]}
4. Nxd4 {[%clk 0:03:02.1]} 4... Nf6 {[%clk 0:02:59.6]} 5. Nc3 {[%clk 0:03:02.7]}
5... a6 {[%clk 0:02:58.8]} 6. Bg5 {[%clk 0:03:03.3]} 6... e6 {[%clk 0:02:58]} 7.
f4 {[%clk 0:03:03.9]} 7... Be7 {[%clk 0:02:55]} 8. Qf3 {[%clk 0:03:04.4]} 8...
Qc7 {[%clk 0:02:51.9]} 9. O-O-O {[%clk 0:03:04.7]} 9... h6 {[%clk 0:02:51.7]}
10. Bh4 {[%clk 0:03:04.5]} 10... Nbd7 {[%clk 0:02:45.5]} 11. g4 {[%clk
0:03:04.1]} 11... g5 {[%clk 0:02:43.5]} 12. e5 {[%clk 0:03:04.1]} 12... gxh4
{[%clk 0:02:38.6]} 13. exf6 {[%clk 0:03:03.9]} 13... Bxf6 {[%clk 0:02:37.4]} 14.
Bh3 {[%clk 0:02:25.2]} 14... Nb6 {[%clk 0:02:33.8]} 15. Rhg1 {[%clk 0:00:56.4]}
15... Nc4 {[%clk 0:02:19.1]} 16. g5 {[%clk 0:00:54.5]} 16... Qb6 {[%clk
0:02:05.7]} 17. Nb3 {[%clk 0:00:40.3]} 17... Bg7 {[%clk 0:01:47.8]} 18. g6
{[%clk 0:00:23.8]} 18... f5 {[%clk 0:01:41.2]} 19. Rge1 {[%clk 0:00:13.2]} 19...
O-O {[%clk 0:01:35.9]} 20. Qd3 {[%clk 0:00:03.8]} 20... d5 {[%clk 0:01:27.1]}
21. Bg2 {[%clk 0:00:03.2]} 21... a5 {[%clk 0:01:16.7]} 22. Bxd5 {[%clk 0:00:02]}
22... Nxb2 {[%clk 0:01:08.4]} 23. Bxe6+ {[%clk 0:00:01.4]} 23... Bxe6 {[%clk
0:01:06.4]} 24. Kxb2 {[%clk 0:00:02.1]} 24... Rad8 {[%clk 0:00:54.7]} 25. Qe3
{[%clk 0:00:02.2]} 25... Qxe3 {[%clk 0:00:46.4]} 26. Rxe3 {[%clk 0:00:03.1]}
26... Bxb3 {[%clk 0:00:45.3]} 27. Rxd8 {[%clk 0:00:02.5]} 27... Rxd8 {[%clk
0:00:44.2]} 28. Kxb3 {[%clk 0:00:03.2]} 28... Rc8 {[%clk 0:00:43.1]} 29. Nd5
{[%clk 0:00:02.5]} 29... Rd8 {[%clk 0:00:34.4]} 30. c4 {[%clk 0:00:02.8]} 30...
b5 {[%clk 0:00:33.7]} 31. a4 {[%clk 0:00:03.2]} 31... bxc4+ {[%clk 0:00:33.5]}
32. Kxc4 {[%clk 0:00:04.1]} 32... Bf8 {[%clk 0:00:25.7]} 33. Re6 {[%clk
0:00:04]} 33... Rc8+ {[%clk 0:00:24.6]} 34. Kd4 {[%clk 0:00:04.4]} 34... Bc5+
{[%clk 0:00:22.4]} 35. Kd3 {[%clk 0:00:04.5]} 35... Bb4 {[%clk 0:00:22.1]} 36.
Rb6 {[%clk 0:00:03.5]} 36... Rd8 {[%clk 0:00:20.1]} 37. Kc4 {[%clk 0:00:02.7]}
37... Rc8+ {[%clk 0:00:19.1]} 38. Kb3 {[%clk 0:00:02.4]} 38... Rd8 {[%clk
0:00:18.2]} 39. Rb5 {[%clk 0:00:02]} 39... Be1 {[%clk 0:00:16.1]} 40. Kc4 {[%clk
0:00:01.3]} 40... Rc8+ {[%clk 0:00:14.3]} 41. Kd3 {[%clk 0:00:01.8]} 41... Re8
{[%clk 0:00:14.2]} 42. Rb7 {[%clk 0:00:01.3]} 42... Bf2 {[%clk 0:00:12.5]} 43.
Nf6+ {[%clk 0:00:01.7]} 43... Kf8 {[%clk 0:00:11.7]} 44. Rf7# {[%clk 0:00:02.4]}
1-0

[Event "Late-Titled-Tuesday-Blitz-February-20-2024"]
[Site "Chess.com"]
[Date "2024.02.20"]
[Round "3"]
[White "Atousa"]
[Black "SRob2003"]
[Result "0-1"]
[WhiteElo "2460"]
[BlackElo "2681"]
[TimeControl "180+1"]
[EndTime "14:27:25 PST"]
[Termination "SRob2003 won by resignation"]

1. e4 {[%clk 0:03:00.9]} 1... c6 {[%clk 0:02:57.3]} 2. d4 {[%clk 0:02:59.3]}
2... d5 {[%clk 0:02:58.2]} 3. exd5 {[%clk 0:02:59.8]} 3... cxd5 {[%clk
0:02:58.6]} 4. Bd3 {[%clk 0:03:00.3]} 4... Nc6 {[%clk 0:02:58.7]} 5. c3 {[%clk
0:02:57]} 5... Qc7 {[%clk 0:02:59.1]} 6. Ne2 {[%clk 0:02:55.7]} 6... Bg4 {[%clk
0:02:58.5]} 7. f3 {[%clk 0:02:53.7]} 7... Bd7 {[%clk 0:02:57.9]} 8. Bf4 {[%clk
0:02:51]} 8... e5 {[%clk 0:02:56.5]} 9. dxe5 {[%clk 0:02:47.1]} 9... Nxe5 {[%clk
0:02:57.4]} 10. O-O {[%clk 0:02:40.5]} 10... Bd6 {[%clk 0:02:56.3]} 11. Kh1
{[%clk 0:02:37.3]} 11... Nf6 {[%clk 0:02:52]} 12. Bxe5 {[%clk 0:02:11.2]} 12...
Bxe5 {[%clk 0:02:51.2]} 13. f4 {[%clk 0:02:11.6]} 13... Bd6 {[%clk 0:02:51.8]}
14. Nd2 {[%clk 0:02:03.7]} 14... O-O {[%clk 0:02:49.8]} 15. Nb3 {[%clk
0:02:03.6]} 15... Ng4 {[%clk 0:02:41.4]} 16. Qd2 {[%clk 0:02:02.8]} 16... Rae8
{[%clk 0:02:36.2]} 17. Nbd4 {[%clk 0:01:55.5]} 17... Re7 {[%clk 0:01:48.5]} 18.
h3 {[%clk 0:01:26.6]} 18... Nf6 {[%clk 0:01:40.3]} 19. Ng3 {[%clk 0:01:23.1]}
19... g6 {[%clk 0:01:24]} 20. Nge2 {[%clk 0:01:03.8]} 20... Ne4 {[%clk
0:01:14.7]} 21. Qd1 {[%clk 0:00:48]} 21... f5 {[%clk 0:01:09.2]} 22. Nb5 {[%clk
0:00:47.5]} 22... Bxb5 {[%clk 0:00:46.8]} 23. Bxb5 {[%clk 0:00:48.4]} 23... Qc5
{[%clk 0:00:46.6]} 24. Ba4 {[%clk 0:00:33.6]} 24... Rd8 {[%clk 0:00:35.2]} 25.
Qd4 {[%clk 0:00:30.7]} 25... Qxd4 {[%clk 0:00:30.3]} 26. cxd4 {[%clk 0:00:31]}
26... Nd2 {[%clk 0:00:17.5]} 27. Rfe1 {[%clk 0:00:29.1]} 27... a6 {[%clk
0:00:14.3]} 28. Rad1 {[%clk 0:00:26.5]} 28... Nc4 {[%clk 0:00:13.6]} 29. Bb3
{[%clk 0:00:23.2]} 29... Rde8 {[%clk 0:00:12.6]} 30. Bxc4 {[%clk 0:00:17.5]}
30... dxc4 {[%clk 0:00:12.7]} 31. Rd2 {[%clk 0:00:17.1]} 31... Bxf4 {[%clk
0:00:10.3]} 32. Rc2 {[%clk 0:00:17.6]} 32... Bg3 {[%clk 0:00:10.5]} 33. Nxg3
{[%clk 0:00:14.8]} 33... Rxe1+ {[%clk 0:00:10.9]} 34. Kh2 {[%clk 0:00:15.7]}
34... b5 {[%clk 0:00:11.1]} 35. Rd2 {[%clk 0:00:13.9]} 35... R1e3 {[%clk
0:00:09.1]} 36. d5 {[%clk 0:00:14.1]} 36... Rd3 {[%clk 0:00:09.5]} 37. Rf2
{[%clk 0:00:11.9]} 37... Rxd5 {[%clk 0:00:09.5]} 38. Nf1 {[%clk 0:00:12.2]}
38... Re1 {[%clk 0:00:09.3]} 39. Nd2 {[%clk 0:00:12.1]} 39... Rde5 {[%clk
0:00:06]} 40. Nf3 {[%clk 0:00:09.8]} 40... R1e2 {[%clk 0:00:06.2]} 41. Nxe5
{[%clk 0:00:09.2]} 41... Rxf2 {[%clk 0:00:06.5]} 42. Nc6 {[%clk 0:00:07.3]}
42... Rxb2 {[%clk 0:00:06.8]} 43. Ne7+ {[%clk 0:00:07.7]} 43... Kf7 {[%clk
0:00:07.2]} 44. Nd5 {[%clk 0:00:08.6]} 44... Rxa2 {[%clk 0:00:07.5]} 45. Nc7
{[%clk 0:00:09.1]} 45... c3 {[%clk 0:00:07.3]} 0-1

[Event "Late-Titled-Tuesday-Blitz-February-20-2024"]
[Site "Chess.com"]
[Date "2024.02.20"]
[Round "3"]
[White "xakevicius91"]
[Black "Kopytkin"]
[Result "0-1"]
[WhiteElo "2580"]
[BlackElo "2403"]
[TimeControl "180+1"]
[EndTime "14:27:26 PST"]
[Termination "Kopytkin won by resignation"]

1. e4 {[%clk 0:03:00.9]} 1... Nf6 {[%clk 0:03:00.3]} 2. e5 {[%clk 0:03:00.5]}
2... Nd5 {[%clk 0:03:00.6]} 3. d4 {[%clk 0:03:01.2]} 3... d6 {[%clk 0:03:01]} 4.
Nf3 {[%clk 0:03:01.9]} 4... g6 {[%clk 0:03:01]} 5. Bc4 {[%clk 0:02:58.9]} 5...
Nb6 {[%clk 0:03:00.8]} 6. Bb3 {[%clk 0:02:58.8]} 6... d5 {[%clk 0:03:01.4]} 7.
O-O {[%clk 0:02:53.6]} 7... Nc6 {[%clk 0:03:01.2]} 8. c3 {[%clk 0:02:53.5]} 8...
Bg7 {[%clk 0:03:01.4]} 9. h3 {[%clk 0:02:51.8]} 9... f6 {[%clk 0:03:01.5]} 10.
exf6 {[%clk 0:02:51.7]} 10... exf6 {[%clk 0:03:02.4]} 11. Re1+ {[%clk
0:02:51.6]} 11... Kf7 {[%clk 0:03:02.7]} 12. Nbd2 {[%clk 0:02:51.7]} 12... Na5
{[%clk 0:02:58.3]} 13. Bc2 {[%clk 0:02:51.5]} 13... Be6 {[%clk 0:02:55.8]} 14.
Nf1 {[%clk 0:02:51]} 14... Nac4 {[%clk 0:02:54]} 15. b3 {[%clk 0:02:50.5]} 15...
Nd6 {[%clk 0:02:54]} 16. Bf4 {[%clk 0:02:48.6]} 16... Qd7 {[%clk 0:02:52.2]} 17.
Qd2 {[%clk 0:02:40.4]} 17... Rhe8 {[%clk 0:02:51.7]} 18. Bh6 {[%clk 0:02:37.5]}
18... Bh8 {[%clk 0:02:48.7]} 19. Ng3 {[%clk 0:02:33.7]} 19... Nf5 {[%clk
0:02:29.1]} 20. Bxf5 {[%clk 0:02:18.8]} 20... Bxf5 {[%clk 0:02:30]} 21. Qf4
{[%clk 0:02:18.2]} 21... Rac8 {[%clk 0:01:47.8]} 22. a4 {[%clk 0:02:10.5]} 22...
Na8 {[%clk 0:01:32.5]} 23. a5 {[%clk 0:02:06.4]} 23... c6 {[%clk 0:01:30.6]} 24.
c4 {[%clk 0:02:05.7]} 24... Nc7 {[%clk 0:01:29.8]} 25. Rad1 {[%clk 0:01:38.1]}
25... Rxe1+ {[%clk 0:01:23.6]} 26. Rxe1 {[%clk 0:01:37.2]} 26... Ne6 {[%clk
0:01:22.4]} 27. Qd2 {[%clk 0:01:37.1]} 27... Ng7 {[%clk 0:01:13.2]} 28. Qb4
{[%clk 0:01:31.4]} 28... Be6 {[%clk 0:01:02.9]} 29. Ne2 {[%clk 0:01:11.3]} 29...
Nf5 {[%clk 0:00:59.7]} 30. Bc1 {[%clk 0:01:11.7]} 30... Qe7 {[%clk 0:00:56.8]}
31. Qc3 {[%clk 0:00:56.8]} 31... Qd6 {[%clk 0:00:51.1]} 32. g4 {[%clk
0:00:54.3]} 32... Ne7 {[%clk 0:00:43.9]} 33. Nf4 {[%clk 0:00:52.2]} 33... Bd7
{[%clk 0:00:35.7]} 34. Kg2 {[%clk 0:00:50.9]} 34... g5 {[%clk 0:00:34.5]} 35.
Nd3 {[%clk 0:00:46.6]} 35... Ng6 {[%clk 0:00:31.5]} 36. b4 {[%clk 0:00:45.1]}
36... Re8 {[%clk 0:00:31.2]} 37. b5 {[%clk 0:00:42.5]} 37... Rxe1 {[%clk
0:00:30.4]} 38. Qxe1 {[%clk 0:00:43.4]} 38... dxc4 {[%clk 0:00:28.1]} 39. Nc5
{[%clk 0:00:39.2]} 39... cxb5 {[%clk 0:00:24]} 40. Nxb7 {[%clk 0:00:33.9]} 40...
Qd5 {[%clk 0:00:23.6]} 41. Nd8+ {[%clk 0:00:30.5]} 41... Kg8 {[%clk 0:00:21.6]}
42. Kg3 {[%clk 0:00:29.7]} 42... h5 {[%clk 0:00:17.7]} 43. gxh5 {[%clk
0:00:27.3]} 43... Nh4 {[%clk 0:00:17.4]} 44. Nxh4 {[%clk 0:00:22.7]} 44... gxh4+
{[%clk 0:00:18.3]} 45. Kxh4 {[%clk 0:00:19.3]} 45... Qxd4+ {[%clk 0:00:17]} 46.
Kg3 {[%clk 0:00:19.7]} 46... Qe5+ {[%clk 0:00:16.5]} 47. Qxe5 {[%clk 0:00:18.8]}
47... fxe5 {[%clk 0:00:17.4]} 48. h6 {[%clk 0:00:17.3]} 48... b4 {[%clk
0:00:17.2]} 49. Kh4 {[%clk 0:00:15.9]} 49... c3 {[%clk 0:00:17.5]} 50. Kh5
{[%clk 0:00:16.5]} 50... b3 {[%clk 0:00:17.1]} 51. Kg6 {[%clk 0:00:17]} 51...
Be8+ {[%clk 0:00:16.7]} 52. Kf5 {[%clk 0:00:16.5]} 52... b2 {[%clk 0:00:16.6]}
0-1

[Event "Late-Titled-Tuesday-Blitz-February-20-2024"]
[Site "Chess.com"]
[Date "2024.02.20"]
[Round "3"]
[White "Nouali_Mohamed"]
[Black "Doublekk14"]
[Result "1-0"]
[WhiteElo "2536"]
[BlackElo "2313"]
[TimeControl "180+1"]
[EndTime "14:27:28 PST"]
[Termination "Nouali_Mohamed won on time"]

1. e4 {[%clk 0:02:58.4]} 1... c5 {[%clk 0:02:53.6]} 2. Nf3 {[%clk 0:02:57.4]}
2... e6 {[%clk 0:02:50]} 3. d4 {[%clk 0:02:57.6]} 3... cxd4 {[%clk 0:02:49.7]}
4. Nxd4 {[%clk 0:02:58.5]} 4... Nf6 {[%clk 0:02:50.3]} 5. Nc3 {[%clk 0:02:58.5]}
5... Nc6 {[%clk 0:02:48.3]} 6. Nxc6 {[%clk 0:02:57.6]} 6... bxc6 {[%clk
0:02:47.5]} 7. e5 {[%clk 0:02:57.6]} 7... Nd5 {[%clk 0:02:47.5]} 8. Ne4 {[%clk
0:02:57.7]} 8... f5 {[%clk 0:02:47.7]} 9. exf6 {[%clk 0:02:50.3]} 9... Nxf6
{[%clk 0:02:46.5]} 10. Bd3 {[%clk 0:02:49.1]} 10... d5 {[%clk 0:02:21.5]} 11.
Nxf6+ {[%clk 0:02:47.9]} 11... Qxf6 {[%clk 0:02:21.4]} 12. O-O {[%clk
0:02:47.9]} 12... Bd6 {[%clk 0:02:18.4]} 13. Qh5+ {[%clk 0:02:45.6]} 13... Qf7
{[%clk 0:02:10.9]} 14. Qh4 {[%clk 0:02:28.3]} 14... h6 {[%clk 0:01:29.9]} 15. f4
{[%clk 0:02:00.1]} 15... O-O {[%clk 0:01:12.3]} 16. Be3 {[%clk 0:01:58.5]} 16...
Bd7 {[%clk 0:01:02.8]} 17. Rf3 {[%clk 0:01:48.9]} 17... Qf6 {[%clk 0:00:57]} 18.
Qf2 {[%clk 0:01:24.3]} 18... e5 {[%clk 0:00:46.5]} 19. fxe5 {[%clk 0:01:02.9]}
19... Qxe5 {[%clk 0:00:45.4]} 20. g3 {[%clk 0:00:45.4]} 20... Rxf3 {[%clk
0:00:43.4]} 21. Qxf3 {[%clk 0:00:46.2]} 21... Rf8 {[%clk 0:00:43.9]} 22. Qe2
{[%clk 0:00:36.4]} 22... Bg4 {[%clk 0:00:15]} 23. Qxg4 {[%clk 0:00:23]} 23...
Qxe3+ {[%clk 0:00:14.6]} 24. Kg2 {[%clk 0:00:20.4]} 24... Rf2+ {[%clk
0:00:10.4]} 25. Kh3 {[%clk 0:00:20.5]} 25... Qd2 {[%clk 0:00:08.6]} 26. Rh1
{[%clk 0:00:14.9]} 26... Bf8 {[%clk 0:00:05.3]} 27. Qe6+ {[%clk 0:00:13]} 27...
Kh8 {[%clk 0:00:04.9]} 28. Qg6 {[%clk 0:00:13.9]} 28... Kg8 {[%clk 0:00:04.8]}
29. Qxc6 {[%clk 0:00:12.8]} 29... Qg5 {[%clk 0:00:03.7]} 30. Qe6+ {[%clk
0:00:12.6]} 30... Kh8 {[%clk 0:00:03.1]} 31. Qg6 {[%clk 0:00:13.1]} 31... Qxg6
{[%clk 0:00:03.1]} 32. Bxg6 {[%clk 0:00:14]} 32... Bd6 {[%clk 0:00:03.2]} 33.
Rd1 {[%clk 0:00:13.5]} 33... Rf6 {[%clk 0:00:03]} 34. Bh5 {[%clk 0:00:12.9]}
34... Be5 {[%clk 0:00:03.2]} 35. c3 {[%clk 0:00:12.7]} 35... Rd6 {[%clk
0:00:02.7]} 36. Bf3 {[%clk 0:00:12.6]} 36... d4 {[%clk 0:00:02.7]} 37. c4 {[%clk
0:00:12.3]} 37... d3 {[%clk 0:00:02.5]} 38. c5 {[%clk 0:00:12.1]} 38... Rd8
{[%clk 0:00:02.2]} 39. c6 {[%clk 0:00:12.3]} 39... Bxb2 {[%clk 0:00:01.8]} 40.
Bg4 {[%clk 0:00:10.8]} 1-0